Cogmind - Beta 10 X2 @@@ ROGUE MODE // 2020.09.09 @ 22:20:02 Player: Decinym Result: Destroyed by as-11143 with Assembled Focal Cannon Performance ------------- Evolutions (3) 1500 Regions Visited (10) 2000 Robots Destroyed (145) 725 Value Destroyed (3511) 3511 Prototype IDs (46) 920 Alien Tech Used (0) 0 Bonus (926) 926 TOTAL SCORE: 9582 Bonus ------- High Alert Combat Kills 158 Follower Combat Kills 473 Aligned with FarCom 300 Met Imprinter 300 Friendly Fire -305 Cogmind --------- Core Integrity 0/700 Matter 176/300 Energy 300/300 System Corruption 1% Temperature Cool (345) Movement Walking (170) Ox1 Location -7/Deep Caves Parts ------- > --- POWER (1) -------- Angular Momentum Engine > --- PROPULSION (3) --- Makeshift Leg Zionite Composite Leg I > --- UTILITY (7) ------ High-capacity Storage Unit Advanced Core Analyzer > --- WEAPON (2) ------- Guided Plasma Cannon 8R-AWN's Boregun > --- INVENTORY (12) --- Zionite Light DM Reactor Zionite Glidesys I Experimental Heat Sink AS-neutralizer No. 17b Precision Grenade Launcher Self-destruct Interrupter (47) Self-destruct Interrupter (47) Peak State ------------ > --- POWER ------------ Angular Momentum Engine > --- PROPULSION ------- Improved Titanium Leg Makeshift Leg Zionite Composite Leg I > --- UTILITY ---------- High-capacity Storage Unit Army-in-a-Box > --- WEAPON ----------- Shock Rifle Precision Shock Rifle > --- INVENTORY -------- Zionite Light DM Reactor Zionite Glidesys I Experimental Heat Sink Advanced Core Analyzer Zionite Light Carapace Zionite Heavy Carapace AS-neutralizer No. 17b Precision Grenade Launcher Self-destruct Interrupter Self-destruct Interrupter [Rating: 88] Favorites ----------- Power Heavy Deuterium Engine Engine Heavy Deuterium Engine Power Core Light Neutrino Core Reactor Light Particle Reactor Propulsion Advanced Myomer Leg Treads Light Treads Leg Advanced Myomer Leg Wheel Wheel Hover Unit Aerolev Unit Utility High-capacity Storage Unit Device Army-in-a-Box Storage High-capacity Storage Unit Processor Advanced Signal Interpreter Hackware EX Chip 1 Protection Improved Utility Shielding Weapon Autogun Energy Gun Particle Gun Energy Cannon Plasma Cannon Ballistic Gun Autogun Launcher Precision Grenade Launcher Special Weapon AD-0RF's Magmablaster Build | -11 -10 -9 -9 -9 -8 -8 -7 -7 -7 -7 ------- Run | Scr Mat Mat Min Exi Min Mat Fac Low Zio Dee Slots Evolved 6 | . . 2 . . . 2 2 . . . Power . | . . . . . . . . . . . Propulsion 1 | . . 1 . . . . . . . . Utility 5 | . . 1 . . . 2 2 . . . Weapon . | . . . . . . . . . . . Parts Attached 162 | . 6 4 3 35 12 11 46 7 28 10 Power 13 | . . 1 . 6 2 . 1 1 2 . Engine 9 | . . 1 . 3 1 . 1 1 2 . Core 2 | . . . . 2 . . . . . . Reactor 2 | . . . . 1 1 . . . . . Propulsion 29 | . 2 . 1 3 . 1 10 1 10 1 Treads 4 | . 2 . . . . . . . 2 . Leg 19 | . . . 1 3 . 1 5 . 8 1 Wheel 5 | . . . . . . . 4 1 . . Hover 1 | . . . . . . . 1 . . . Flight . | . . . . . . . . . . . Utility 58 | . 2 1 2 16 5 4 14 . 10 4 Device 16 | . . . . 6 3 1 3 . 2 1 Storage 13 | . 1 . . 5 2 1 2 . 2 . Processor 5 | . 1 . . . . . 3 . . 1 Hackware 1 | . . . . . . . 1 . . . Protection 23 | . . 1 2 5 . 2 5 . 6 2 Artifact . | . . . . . . . . . . . Weapon 62 | . 2 2 . 10 5 6 21 5 6 5 Energy Gun 20 | . 2 . . 2 . 2 12 . . 2 Energy Cannon 8 | . . . . . . . 5 2 . 1 Ballistic Gun 29 | . . 2 . 8 4 4 3 3 4 1 Ballistic Cannon . | . . . . . . . . . . . Launcher 4 | . . . . . . . 1 . 2 1 Special Weapon 1 | . . . . . 1 . . . . . Impact Weapon . | . . . . . . . . . . . Slashing Weapon . | . . . . . . . . . . . Piercing Weapon . | . . . . . . . . . . . Special Melee Weapon . | . . . . . . . . . . . Unidentified Prototypes 22 | . . . . 10 1 4 3 . 1 3 Parts Lost 33 | . . . . 5 . 1 15 4 1 7 Power 3 | . . . . 1 . . . 1 1 . Propulsion 10 | . . . . 2 . 1 4 1 . 2 Utility 7 | . . . . . . . 3 1 . 3 Weapon 13 | . . . . 2 . . 8 1 . 2 Highest Loss Streak 5 | . . . . 5 . 1 5 4 1 5 Average Slot Usage (%) 81 | . 97 84 89 95 86 74 85 92 81 57 Engine 7 | . 14 11 11 8 10 9 6 7 6 7 Treads 5 | . 19 22 22 3 . . . . 8 . Leg 16 | . 8 . 1 28 33 27 20 . 8 18 Wheel 1 | . . . . . . . 1 23 2 . Device 3 | . . . . . 1 . 6 . 2 5 Storage 15 | . 14 11 11 19 20 18 15 23 17 10 Processor 4 | . 11 11 11 1 . . 6 7 3 1 Protection 8 | . . 8 10 8 . 9 8 8 13 5 Energy Gun 3 | . 23 5 . 6 . 4 7 2 . . Ballistic Gun 10 | . 4 16 22 14 10 6 2 10 14 3 Naked Turns . | . . . . . . . . . . . Heaviest Build 158 | 11 25 35 35 113 141 153 158 88 127 132 Greatest Support 80 | 20 40 40 40 80 80 80 80 30 57 64 Greatest Overweight (x) 9 | . . . . 1 1 2 9 2 6 3 Average Overweight (x) 1 | . . . . . 1 1 1 2 1 1 Largest Inventory Capacity 32 | . 10 10 10 30 32 32 32 24 24 24 Average Capacity 20 | . 8 10 10 17 31 32 30 24 20 14 Most Carried 32 | . 10 10 10 30 32 32 32 24 24 24 Average Carried 19 | . 8 9 9 15 30 30 30 23 19 11 Final Capacity 32 | 6 10 10 10 30 32 32 24 24 24 12 Final Carried 32 | 6 10 10 10 30 32 32 24 23 24 7 Class Distribution -------------------- 35% | Mutant 33% | Scavenger-Mutant 31% | Hauler-Mutant Dominant Class ---------------- Mutant | -10/Materials Mutant | -9/Materials Mutant | -9/Mines Mutant | -9/Exiles Hauler-Mutant | -8/Mines Hauler-Mutant | -8/Materials Hauler-Mutant | -7/Factory Scavenger-Mutant | -7/Lower Caves Scavenger-Mutant | -7/Zion Mutant | -7/Deep Caves Resources | -11 -10 -9 -9 -9 -8 -8 -7 -7 -7 -7 ----------- Run | Scr Mat Mat Min Exi Min Mat Fac Low Zio Dee Matter Collected 3136 | 200 20 145 293 709 200 140 629 50 598 152 Remotely . | . . . . . . . . . . . Salvage Created 5146 | . 50 145 341 569 345 939 2057 90 345 265 Parts 337 | . 5 12 23 84 12 63 110 3 17 8 Haulers Intercepted 5 | . . . . . . 1 4 . . . Recyclers Shooed 9 | . 1 1 . . 2 . 5 . . . Parts Field Recycled . | . . . . . . . . . . . Retrieved Matter . | . . . . . . . . . . . Parts Self-Destructed 1 | . . . . . . . . 1 . . Prevented 1 | . . . . . . . . 1 . . Kills | -11 -10 -9 -9 -9 -8 -8 -7 -7 -7 -7 ------- Run | Scr Mat Mat Min Exi Min Mat Fac Low Zio Dee Combat Hostiles Destroyed 87 | . 3 1 12 6 3 21 25 3 4 9 Guns 67 | . 3 1 12 6 1 21 14 2 4 3 Cannons 8 | . . . . . 2 . 5 1 . . AOE 10 | . . . . . . . 5 . . 5 Classes Destroyed 22 | . 1 4 3 3 2 3 2 . 2 2 Worker 10 | . . . 1 . 1 . 8 . . . Builder 6 | . . 1 1 . . . 4 . . . Tunneler 2 | . . . 1 . 1 . . . . . Hauler 5 | . . . . . . 1 4 . . . Recycler 9 | . . 1 1 . 1 . 6 . . . Operator 1 | . . . . . . . 1 . . . Drone 1 | . . . . . 1 . . . . . Turret 1 | . . . . 1 . . . . . . Watcher 3 | . . 1 . . . 2 . . . . Swarmer 24 | . 3 . 7 . . 7 4 3 . . Grunt 28 | . . 1 4 . . 9 14 . . . Brawler 1 | . . . . . . 1 . . . . Duelist 2 | . . . 1 . . 1 . . . . Sentry 5 | . . . . . . 3 2 . . . Hunter 2 | . . . . . 2 . . . . . Programmer 5 | . . . . . . . 5 . . . Zionite 12 | . . . . 7 . . . . 5 . Z-Technician 4 | . . . . . . . . . . 4 Z-Light 5 | . . . . . . . . . . 5 Tinkerer 1 | . . . . . . . . . 1 . Assembled 8 | . . . . 5 . . . . . 3 Golem 1 | . . . . . . . . . . 1 Thug 1 | . . . . . . . . . 1 . Savage 1 | . . . . . . . . . 1 . Martyr 1 | . . . . . . . . . 1 . Best Kill Streak 12 | . 3 4 5 5 1 9 12 3 2 5 Combat Bots Only 8 | . 3 1 4 5 1 8 8 3 1 5 Max Kills in Single Turn 5 | . 1 1 2 2 1 2 5 1 1 2 Gunslinging 1 | . . . 1 . . . . . . 1 Exploded 2 | . . . . . . . 1 . . 2 Melee . | . . . . . . . . . . . Uniques/NPCs Destroyed 5 | . . . . 2 1 . . . 2 . 8R-AWN (-9/Exiles) EX-BIN (-9/Exiles) EX-HEX (-9/Exiles) EX-DEC (-9/Exiles) AD-0RF (-8/Mines) Imprinter (-7/Zion) ME-RLN (-7/Zion) Combat | -11 -10 -9 -9 -9 -8 -8 -7 -7 -7 -7 -------- Run | Scr Mat Mat Min Exi Min Mat Fac Low Zio Dee Damage Taken 8432 | . 168 64 548 1281 286 586 2396 409 805 1889 Core 1079 | . 46 . 66 193 58 6 275 75 19 341 Absorbed by Shields . | . . . . . . . . . . . Core Remaining (%) 74 | 100 81 . . . 20 98 . . . . Volleys Fired 355 | . 11 5 30 66 23 25 112 10 39 34 Largest 2 | . 2 2 2 2 2 2 2 2 2 2 Hottest 220 | . 130 50 50 90 220 122 150 115 46 120 Shots Fired 628 | . 22 10 60 104 26 92 174 15 75 50 Gun 564 | . 22 10 60 104 17 92 134 12 75 38 Cannon 40 | . . . . . . . 32 3 . 5 Launcher 15 | . . . . . . . 8 . . 7 Special 9 | . . . . . 9 . . . . . Kinetic 374 | . 16 10 60 74 17 62 30 . 75 30 Thermal 161 | . 6 . . 30 9 30 78 3 . 5 Explosive 7 | . . . . . . . . . . 7 Electromagnetic 86 | . . . . . . . 66 12 . 8 Robot Hit Streak 29 | . 3 4 12 9 6 19 29 4 6 17 Robot Miss Streak 7 | . 4 5 4 7 3 3 6 1 5 3 Penetration Max 2 | . . . . 2 1 . 2 . . . Secondary Targets 7 | . . . 1 . . . 3 . 1 2 Max Gunslinging Chain 1 | . . . 1 . . . 1 . 1 1 Autonomous 58 | . . . . . . 52 6 . . . Shots Hit Robots 413 | . 11 7 46 65 20 66 116 10 43 29 Core Hits 268 | . 4 5 22 42 14 32 91 4 21 33 Critical Hits 30 | . . 1 . 12 3 1 10 . 1 2 Critical Kills 8 | . . 1 . 3 1 . 1 . . 2 Critical Parts Destroyed 19 | . . . . 8 1 1 9 . . . Melee Attacks . | . . . . . . . . . . . Impact . | . . . . . . . . . . . Slashing . | . . . . . . . . . . . Piercing . | . . . . . . . . . . . Sneak Attacks . | . . . . . . . . . . . Combat Hostiles . | . . . . . . . . . . . Follow-up Attacks . | . . . . . . . . . . . Damage Inflicted 11154 | . 101 174 823 1338 439 1980 4163 151 778 1207 Guns 7849 | . 101 174 823 1338 212 1800 2117 104 778 402 Cannons 852 | . . . . . . . 628 47 . 177 Explosions 2222 | . . . . . . 180 1414 . . 628 Melee . | . . . . . . . . . . . Ramming 4 | . . . . . . . 4 . . . Kinetic 5367 | . 71 174 823 961 212 1460 587 . 778 301 Thermal 3728 | . 30 . . 377 227 520 2350 47 . 177 Explosive 628 | . . . . . . . . . . 628 Electromagnetic 1427 | . . . . . . . 1222 104 . 101 Impact . | . . . . . . . . . . . Slashing . | . . . . . . . . . . . Piercing . | . . . . . . . . . . . Highest Corruption 5 | . . . . . . . 5 5 5 1 Average Corruption 1 | . . . . . . . 2 5 1 1 Corruption Purged . | . . . . . . . . . . . Effects 36 | . . . . . . . 16 5 7 8 Message Errors 13 | . . . . . . . 3 2 3 5 Matter Fused 7 | . . . . . . . 4 1 2 . Energy Discharges 7 | . . . . . . . 4 . 2 1 Parts Rejected 1 | . . . . . . . 1 . . . Data Loss (minor) 4 | . . . . . . . 2 . . 2 Data Loss (major) 1 | . . . . . . . . 1 . . Targeting Errors 3 | . . . . . . . 2 1 . . Overload Shots . | . . . . . . . . . . . Overflow Damage 315 | . . . . . . 93 208 . . 14 Projectiles 45 | . . . . . . . 45 . . . Explosions 270 | . . . . . . 93 163 . . 14 Melee . | . . . . . . . . . . . Knockbacks . | . . . . . . . . . . . Impact . | . . . . . . . . . . . Kinetic . | . . . . . . . . . . . Secondary . | . . . . . . . . . . . Self-Inflicted Damage 308 | . . . . . . . 308 . . . Shots 5 | . . . . . . . 5 . . . Rammed . | . . . . . . . . . . . Targets Rammed 1 | . . . . . . . 1 . . . Kicked 1 | . . . . . . . 1 . . . Crushed . | . . . . . . . . . . . Highest Temperature 450 | . 138 . 17 340 312 450 438 123 5 364 Average Temperature 108 | . 61 . 7 114 97 152 105 73 5 64 Received Heat Transfer 1756 | . . 24 72 . 220 252 717 . 72 399 Effects 4 | . . . . . 1 1 2 . . . Shutdowns 1 | . . . . . . 1 . . . . Energy Bleed 1 | . . . . . . . 1 . . . Interference 1 | . . . . . 1 . . . . . Short Circuit 1 | . . . . . . . 1 . . . Siege Activations . | . . . . . . . . . . . Robots Corrupted 2 | . . . . . . . 1 . . 1 Combat Hostiles 2 | . . . . . . . 1 . . 1 Parts Fried 5 | . . . . . . . 5 . . . Impact Corruptions . | . . . . . . . . . . . Robots Melted . | . . . . . . . . . . . Combat Hostiles . | . . . . . . . . . . . Parts Melted 3 | . . . . . 1 . 2 . . . Heat Transferred 6478 | . 74 . . 925 1440 779 2786 74 . 400 Parts Sabotaged . | . . . . . . . . . . . Parts Stolen . | . . . . . . . . . . . Parts Stripped . | . . . . . . . . . . . Power Chain Reactions 6 | . . . . . . . 6 . . . Missiles Intercepted . | . . . . . . . . . . . Alert | -11 -10 -9 -9 -9 -8 -8 -7 -7 -7 -7 ------- Run | Scr Mat Mat Min Exi Min Mat Fac Low Zio Dee Peak Influence 579 | . 100 72 240 . 40 543 579 . . . Average Influence 194 | . 75 12 98 . 27 332 289 . . . Maximum Alert Level 2 | . . . 1 . . 2 2 . . . Low Security (%) 59 | . 100 100 94 . 100 19 30 . . . Level 1 21 | . . . 5 . . 35 37 . . . Level 2 19 | . . . . . . 45 32 . . . Level 3 . | . . . . . . . . . . . Level 4 . | . . . . . . . . . . . Level 5 . | . . . . . . . . . . . High Security . | . . . . . . . . . . . Max Security . | . . . . . . . . . . . Squads Dispatched 13 | . . . . . . 2 11 . . . Investigation 4 | . . . . . . 1 3 . . . Extermination 4 | . . . . . . . 4 . . . Reinforcement 5 | . . . . . . 1 4 . . . Assault . | . . . . . . . . . . . Garrison . | . . . . . . . . . . . Intercept . | . . . . . . . . . . . Construction Impeded 3 | . . . . . . 1 2 . . . Haulers Reinforced 1 | . . . . . . . 1 . . . Stealth | -11 -10 -9 -9 -9 -8 -8 -7 -7 -7 -7 --------- Run | Scr Mat Mat Min Exi Min Mat Fac Low Zio Dee Distress Signals 3 | . . 1 . . . 1 1 . . . Communications Jammed . | . . . . . . . . . . . Distress Signals . | . . . . . . . . . . . Times Spotted 193 | . 8 8 14 36 4 31 37 3 38 14 Peak Tracking Total 9 | . 3 6 4 9 1 6 4 3 7 6 Tactical Retreats 24 | . 1 . 2 16 1 1 3 . . . Traps | -11 -10 -9 -9 -9 -8 -8 -7 -7 -7 -7 ------- Run | Scr Mat Mat Min Exi Min Mat Fac Low Zio Dee Traps Triggered 2 | . . 1 . . . . 1 . . . Indirectly . | . . . . . . . . . . . Trap Hack Attempts . | . . . . . . . . . . . Triggered . | . . . . . . . . . . . Disarmed . | . . . . . . . . . . . Reprogrammed . | . . . . . . . . . . . Reused . | . . . . . . . . . . . Traps Extracted . | . . . . . . . . . . . Installed . | . . . . . . . . . . . Triggered . | . . . . . . . . . . . Machines | -11 -10 -9 -9 -9 -8 -8 -7 -7 -7 -7 ---------- Run | Scr Mat Mat Min Exi Min Mat Fac Low Zio Dee Machines Disabled 26 | . . . . 11 . 5 7 . 2 1 Max in Single Turn 5 | . . . . 3 . 2 5 . . . Garrison Access 1 | . . . . . . . 1 . . . Machines Sabotaged . | . . . . . . . . . . . Garrisons Compromised . | . . . . . . . . . . . Overloaded Fab Kills . | . . . . . . . . . . . Fab Network Shutdowns . | . . . . . . . . . . . Hacking | -11 -10 -9 -9 -9 -8 -8 -7 -7 -7 -7 --------- Run | Scr Mat Mat Min Exi Min Mat Fac Low Zio Dee Machines Accessed 17 | . . . 1 2 . 4 9 . 1 . Terminals 9 | . . . . . . 2 7 . . . Fabricators . | . . . . . . . . . . . Repair Stations . | . . . . . . . . . . . Recycling Units . | . . . . . . . . . . . Scanalyzers 3 | . . . . . . 2 1 . . . Garrison Access 1 | . . . . . . . 1 . . . Total Hacks 46 | . . . 1 6 . 13 23 . 3 . Successful 25 | . . . 1 6 . 10 5 . 3 . Failed 21 | . . . . . . 3 18 . . . Catastrophic 5 | . . . . . . . 5 . . . Database Lockouts . | . . . . . . . . . . . Manual 26 | . . . . 1 . 6 15 . 4 . Terminals 24 | . . . . . . 6 18 . . . Fabricators . | . . . . . . . . . . . Repair Stations . | . . . . . . . . . . . Recycling Units . | . . . . . . . . . . . Scanalyzers 10 | . . . . . . 7 3 . . . Garrison Access 2 | . . . . . . . 2 . . . Terminal Hacks 13 | . . . 1 6 . 3 . . 3 . Record 5 | . . . . 5 . . . . . . Part Schematic 3 | . . . . . . . . . 3 . Open Door 1 | . . . 1 . . . . . . . Branch Access Points 1 | . . . . . . 1 . . . . Unreport Threat 1 | . . . . . . 1 . . . . Hauler Manifests 1 | . . . . . . 1 . . . . EX-Prototype ID Bank 1 | . . . . 1 . . . . . . Fabricator Hacks . | . . . . . . . . . . . Repair Station Hacks . | . . . . . . . . . . . Recycling Unit Hacks . | . . . . . . . . . . . Scanalyzer 8 | . . . . . . 6 2 . . . Insert Component 4 | . . . . . . 3 1 . . . Analyze 4 | . . . . . . 3 1 . . . Garrison Access Hacks 1 | . . . . . . . 1 . . . Seal Access 1 | . . . . . . . 1 . . . Unauthorized Hacks 3 | . . . . . . 1 2 . . . Terminals 3 | . . . . . . 1 2 . . . Assimilate 1 | . . . . . . . 1 . . . Botnet 1 | . . . . . . . 1 . . . Disrupt 1 | . . . . . . 1 . . . . Fabricators . | . . . . . . . . . . . Repair Stations . | . . . . . . . . . . . Recycling Units . | . . . . . . . . . . . Scanalyzers . | . . . . . . . . . . . Garrison Access . | . . . . . . . . . . . Data Cores Recovered 1 | . . . . . . . 1 . . . Used 1 | . . . . . . . 1 . . . Hacking Detections 11 | . . . . . . 3 8 . . . Full Trace Events 5 | . . . . . . 2 3 . . . Feedback Events 1 | . . . . . . . 1 . . . Corruption 1 | . . . . . . . 1 . . . Feedback Blocked . | . . . . . . . . . . . Robot Schematics Acquired . | . . . . . . . . . . . Robots Built . | . . . . . . . . . . . Matter . | . . . . . . . . . . . Time . | . . . . . . . . . . . Total Robot Build Rating . | . . . . . . . . . . . Part Schematics Acquired 6 | . . . . . . 2 1 . 3 . Parts Built . | . . . . . . . . . . . Matter . | . . . . . . . . . . . Time . | . . . . . . . . . . . Total Part Build Rating . | . . . . . . . . . . . Parts Repaired . | . . . . . . . . . . . Time . | . . . . . . . . . . . Parts Recycled . | . . . . . . . . . . . Recycled Matter . | . . . . . . . . . . . Retrieved Matter . | . . . . . . . . . . . Retrieved Components . | . . . . . . . . . . . Parts Scanalyzed 3 | . . . . . . 2 1 . . . Part Schematics Acquired 3 | . . . . . . 2 1 . . . Parts Damaged . | . . . . . . . . . . . Bothacking | -11 -10 -9 -9 -9 -8 -8 -7 -7 -7 -7 ------------ Run | Scr Mat Mat Min Exi Min Mat Fac Low Zio Dee Used RIF Installer . | . . . . . . . . . . . Robots Hacked . | . . . . . . . . . . . Non-combat . | . . . . . . . . . . . Combat . | . . . . . . . . . . . Robot Hacks Applied . | . . . . . . . . . . . Relay Couplers Released . | . . . . . . . . . . . Robots Rewired . | . . . . . . . . . . . Allies Hacked . | . . . . . . . . . . . Hacks Repelled . | . . . . . . . . . . . Allies | -11 -10 -9 -9 -9 -8 -8 -7 -7 -7 -7 -------- Run | Scr Mat Mat Min Exi Min Mat Fac Low Zio Dee Total Allies . | . . . . . . . . . . . Largest Group . | . . . . . . . . . . . Highest-Rated Group . | . . . . . . . . . . . Highest-Rated Ally . | . . . . . . . . . . . Total Orders 12 | . . . . 1 1 . . . 6 4 STAY 2 | . . . . . . . . . . 2 EXPLORE 10 | . . . . 1 1 . . . 6 2 Ally Attacks 447 | . . . . 92 37 . 7 . 284 27 Total Damage 7924 | . . . . 564 251 . 434 . 5755 920 Kills 77 | . . . . . . . 3 . 65 9 Allies Corrupted . | . . . . . . . . . . . Allies Melted . | . . . . . . . . . . . Turrets Deployed 1 | . . . . . . . 1 . . . Intel | -11 -10 -9 -9 -9 -8 -8 -7 -7 -7 -7 ------- Run | Scr Mat Mat Min Exi Min Mat Fac Low Zio Dee Robot Analysis Total . | . . . . . . . . . . . Derelict Logs Recovered 4 | . . . 2 . . . . . 2 . Drone Launches 158 | . . . . 13 4 . . . 90 51 Drone Recoveries 127 | . . . . 13 3 . . . 78 33 Exploration | -11 -10 -9 -9 -9 -8 -8 -7 -7 -7 -7 ------------- Run | Scr Mat Mat Min Exi Min Mat Fac Low Zio Dee Turns Passed 14386 | . 446 289 1031 2519 640 625 2361 127 3821 2527 Spaces Moved 7558 | 1 261 166 582 1473 306 332 1161 93 1972 1211 Core . | . . . . . . . . . . . Treads 2149 | . 190 166 582 245 . . . . 966 . Legs 4779 | 1 71 . . 1228 306 332 994 . 636 1211 Wheels 630 | . . . . . . . 167 93 370 . Hover . | . . . . . . . . . . . Flight . | . . . . . . . . . . . Fastest Speed 100 | 120 120 160 160 120 156 156 100 100 100 160 Average Speed 164 | 120 149 160 160 142 156 156 163 100 174 191 Slowest Speed 320 | 120 160 160 160 160 156 180 240 100 320 225 Overloaded Moves . | . . . . . . . . . . . Propulsion Burnouts . | . . . . . . . . . . . Robots Hopped . | . . . . . . . . . . . Cave-ins Triggered . | . . . . . . . . . . . Exploration Rate (%) 50 | 1 42 24 88 91 55 28 34 17 91 82 Regions Visited 10 Branch Regions 6 Pre-discovered Areas 2 | . . . 1 1 . . . . . . Known Exits Taken 2 | . . . . . . . 1 1 . . Unknown Exits Taken 8 | 1 1 1 1 1 1 1 . . 1 . Scrap Searched 5 | . . . 1 . 2 . . . 2 . Spaces Dug . | . . . . . . . . . . . Terrain Destroyed 132 | . . . . 4 2 44 75 . . 7 Melee . | . . . . . . . . . . . Projectile 38 | . . . . 4 2 29 3 . . . AOE 94 | . . . . . . 15 72 . . 7 Actions | -11 -10 -9 -9 -9 -8 -8 -7 -7 -7 -7 --------- Run | Scr Mat Mat Min Exi Min Mat Fac Low Zio Dee Total 8984 | . 298 188 622 1790 444 403 1453 110 2288 1388 Wait 590 | . 4 . 5 164 46 15 65 . 191 100 Move 7548 | . 260 165 581 1472 305 331 1160 92 1971 1211 Hop . | . . . . . . . . . . . Pick Up 152 | . 9 6 1 33 21 8 37 . 26 11 Fast Attach 73 | . 3 2 2 10 5 4 28 1 17 1 Attach 47 | . . 1 . 6 3 8 14 3 4 8 Detach 13 | . . . . 3 2 4 2 1 1 . Swap 43 | . 3 1 1 19 4 . 4 3 7 1 Drop 153 | . 8 8 2 17 27 8 30 . 31 22 Fire 355 | . 11 5 30 66 23 25 112 10 39 34 Melee . | . . . . . . . . . . . Ram . | . . . . . . . . . . . Kick 1 | . . . . . . . 1 . . . Crush . | . . . . . . . . . . . Escape Stasis . | . . . . . . . . . . . Rewire 9 | . . . . . 8 . . . 1 . Trap . | . . . . . . . . . . . Miscellaneous . | . . . . . . . . . . . Route ------- -11/Scrapyard -10/Materials -9/Materials -9/Mines (discovered 3 exits: *Mat / *Exi / *Zio) -9/Exiles (discovered 2 exits: [*Min x2]) -8/Mines -8/Materials -7/Factory (discovered 2 exits: *Fac / *Low) -7/Lower Caves -7/Zion (discovered 2 exits: [*Dee] / [*Pro]) -7/Deep Caves History --------- Turn | Location | Event 1 | -11/Scrapyard | Discovered new exit (range 0) 1 | -11/Scrapyard | Entered Materials 311 | -10/Materials | Build established: Mutant 415 | -10/Materials | Discovered new exit (range 16) 447 | -10/Materials | Entered another Materials area 447 | -9/Materials | Evolved 2 slots: Propulsion x1, Utility x1 717 | -9/Materials | Discovered new exit (range 12) 736 | -9/Materials | Entered Mines 737 | -9/Mines | A Derelict revealed a hidden shortcut to a safe place 826 | -9/Mines | Learned Materials garrison access intel 830 | -9/Mines | Found the Drone Emporium 843 | -9/Mines | Found Prototype Device 883 | -9/Mines | Learned location of Storage (-9) 944 | -9/Mines | Discovered new exit (range 7) 1302 | -9/Mines | Learned Materials security intel 1761 | -9/Mines | Deemed a non-threat by the Exiles lab entrance 1761 | -9/Mines | Discovered new exit (range 5) 1767 | -9/Mines | Entered Exiles 1788 | -9/Exiles | Discovered new exit (range 15) 1807 | -9/Exiles | Met 8R-AWN 1830 | -9/Exiles | Met EX-HEX 1881 | -9/Exiles | Met EX-BIN 1967 | -9/Exiles | Aligned with FarCom system 1969 | -9/Exiles | Given EX-Vault access code 2009 | -9/Exiles | Opened EX-Vault 2047 | -9/Exiles | Warned to stay clear of 0b10 Research branches 2146 | -9/Exiles | Identified Thief Drone Bay 2170 | -9/Exiles | Attacked by the Exiles 2238 | -9/Exiles | Lost 5 parts (1p2n2w) 2332 | -9/Exiles | Destroyed 8R-AWN 2414 | -9/Exiles | Found AS-neutralizer No. 17b 2417 | -9/Exiles | Found 8R-AWN's Boregun 2483 | -9/Exiles | Found 8R-AWN's Boregun 2523 | -9/Exiles | Learned location of Zion (-7) 2574 | -9/Exiles | Destroyed EX-BIN 2628 | -9/Exiles | Destroyed EX-HEX 2651 | -9/Exiles | Core integrity fell below 50% 2671 | -9/Exiles | Destroyed EX-DEC 2951 | -9/Exiles | Found Gui. Plasma Cannon 2958 | -9/Exiles | Found AWS/Gauss 3212 | -9/Exiles | Found Prototype Device 3212 | -9/Exiles | Identified System Purifier 3290 | -9/Exiles | Found Deploy-a-Sentry 3524 | -9/Exiles | Build established: Hauler-Mutant 3645 | -9/Exiles | Found Army-in-a-Box 4175 | -9/Exiles | Discovered new exit (range 10) 4286 | -9/Exiles | Stole four prototypes: Army-in-a-Box, Gui. Plasma Cannon, AWS/Gauss, Deploy-a-Sentry 4286 | -9/Exiles | Entered Mines 4297 | -8/Mines | AD-0RF came to Exiles' defense 4337 | -8/Mines | Found Prototype Special Weapon 4337 | -8/Mines | Identified AD-0RF's Magmablaster 4552 | -8/Mines | Destroyed AD-0RF 4595 | -8/Mines | Found Prototype Processor 4911 | -8/Mines | Discovered new exit (range 9) 4926 | -8/Mines | Entered Materials 4926 | -8/Materials | Evolved 2 slots: Utility x2 4928 | -8/Materials | Loaded intel: 1 garrison access location 5028 | -8/Materials | Identified Exp. Targeting Computer 5086 | -8/Materials | Destroyed 8 combat bots 5507 | -8/Materials | Discovered new exit (range 5) 5551 | -8/Materials | Entered Factory 5551 | -7/Factory | Evolved 2 slots: Utility x2 6628 | -7/Factory | Destroyed 8 combat bots 6865 | -7/Factory | Discovered new exit (range 13) 6887 | -7/Factory | Identified exit to Factory 7358 | -7/Factory | DAS Turret deployed 7477 | -7/Factory | Discovered new exit (range 11) 7665 | -7/Factory | Lost 5 parts (2n2u1w) 7756 | -7/Factory | Lost 3 parts (1n2w) 7911 | -7/Factory | Identified exit to Lower Caves 7912 | -7/Factory | Entered Lower Caves 7974 | -7/Lower Caves | Lost 4 parts (1p1n1u1w) 8036 | -7/Lower Caves | A Derelict revealed a hidden shortcut to a safe place 8038 | -7/Lower Caves | Identified exit to Zion 8039 | -7/Lower Caves | Entered Zion 8056 | -7/Zion | Given the Hacking Drone Bay 8062 | -7/Zion | Found Prototype Device 8077 | -7/Zion | Learned 4 Factory zone layouts 8108 | -7/Zion | Build established: Scavenger-Mutant 8119 | -7/Zion | Discovered new exit (range 10) 8161 | -7/Zion | System corruption cleaned by Quarantine Array 8527 | -7/Zion | Learned Factory interactive machine intel 8763 | -7/Zion | Found Prototype Device 8903 | -7/Zion | Found Prototype Device 10348 | -7/Zion | Attacked by Zionites 10354 | -7/Zion | Allies destroyed Imprinter 10367 | -7/Zion | Extracted access codes from Imprinter's data core 10477 | -7/Zion | Core integrity fell below 50% 11132 | -7/Zion | ME-RLN came to Zion's defense 11147 | -7/Zion | Destroyed ME-RLN 11817 | -7/Zion | Opened final containment barrier to the Deep Caves 11849 | -7/Zion | Discovered new exit (range 5) 11852 | -7/Zion | Saw the warning signs outside the Deep Caves entrance 11860 | -7/Zion | Entered Deep Caves 12587 | -7/Deep Caves | Z-Facility disabled 12895 | -7/Deep Caves | Build established: Mutant 13478 | -7/Deep Caves | Found Prototype Protection 13852 | -7/Deep Caves | Spotted as-03530 13857 | -7/Deep Caves | Identified Zio. Heavy Carapace 13870 | -7/Deep Caves | Destroyed as-03530 13870 | -7/Deep Caves | Core integrity fell below 20% 13900 | -7/Deep Caves | Lost 5 parts (1n2u2w) 14339 | -7/Deep Caves | Spotted as-11143 14387 | -7/Deep Caves | Destroyed by as-11143 with Assembled Focal Cannon Last Messages --------------- 13612_ Acquired Prototype Reactor. 13809_ Army Drone retrieved by Army-in-a-Box. 13818_ Army Drone released from Army-in-a-Box. 13853_ Army-in-a-Box destroyed. 13853_ >> Lost connection to Army Drone. 13854_ as-03530: "DSI9AT1D G8OHIBQ29FWG 26R186 QD12WHW8W33 TDK1 81FTS" 13856_ Imp. Titanium Leg destroyed. 13856_ Prc. Shock Rifle destroyed. 13857_ Identified Zio. Heavy Carapace. 13866_ Army Drone destroyed. 13869_ Zio. Heavy Carapace destroyed. 13869_ Shock Rifle destroyed. 13870_ as-03530 system terminally corrupted. 13879_ Acquired 18 matter. 14041_ |,B9QG3XC9>VZ|DHC4LDX6UW U C7EI2J#0 14071_ Acquired 9 matter. 14189_ Acquired Gui. Plasma Cannon. 14191_ Acquired 8R-AWN's Boregun. 14345_ Identified Zio. Light Carapace. 14385_ Zio. Light Carapace destroyed. Map ----- +----------------------------------------------------+ | #??????????### ###" # | | #####??????# # # # | | #??????# | | #??????## | | ###### #### #???????### * | | ##????# #?# #?????????## | | #?????# #?# #?????????# | | #????# ##?# #??????#### " "" | | #???####??# #?????## # """" | | #?????????# #?????# """"" | | #?????????# #?????#=[# """"" | | ##?????????# #?????##?## """"" | | #??????????# #????????## """"" | | ???????????# #?###????# """"" | | ############ ## ##???## """"" | | ## #?#### """"" | | #### # """" | | ####### ###?# """" | | ??????# ###???# """" | | ??????# ###?????# """" | | ??????# ##???????## """" | | ???#### ##?????????### """" | | ??## ## ####?????????# """" | | ??# # ###???????## % """" | | #### #????????# """" | | ## ## #????#####@ """" | | ### ##?# #???## ## """ | | ## #???# #??# #; % "" | | #????####??# #G "" | | #?????????## "" | | ########### % "" | | "" | | "" | | | | ############# | | ## ####???????# | | ?## #???????### | | ??# #????????# | | ?# #????????## | | ?# ##?????????# | | ?## #??????????# # # %# | | ??## ##??????????## ### # | | ???#######????????????# #?## ! # #### | | ??????????????????????## #######?# # #???#### | | ???????????????????????####???????#### ####??????? | | | | | | | | | | | +----------------------------------------------------+ Best States ------------- Heat Dissipation 60 Energy Generation 23 Energy Capacity 310 Matter Stores 300 Matter Capacity 300 Sight Range 22 Robot Scan Range 16 Terrain Scan Density 10 Armor Coverage 1200 Resistance: TH 10 Utility Shielding 66 Evasion (%) 40 Targeting Accuracy 6 Core Analysis 10 Recoil Reduction 2 Offensive Hacking 7 Item Schematics ----------------- Coolant Network | -8/Materials | Scanalyzed Exp. Targeting Computer | -8/Materials | Scanalyzed Gravity Neutralizing Apparatus | -7/Factory | Scanalyzed Hvy. Beamcaster | -7/Zion | Free Riot Gun | -7/Zion | Free Flamer | -7/Zion | Free Robot Schematics ------------------ None Fabricated ------------ Nothing Alien Tech Used ----------------- None Achievements -------------- None Challenges ------------ None Game ------ Seed ReinforcedPropulsionSword Manual? 0 Play Time 01:43:11 Cumulative 331.2 hours Start 2020.09.02 @ 14:15:43 End 2020.09.09 @ 22:20:02 Sessions 6 Manual Loads 0 Difficulty Rogue Special Mode None Game No. 365 Rogue 365 Adventurer 0 Explorer 0 Win Type - Total 29 Types 17/3/2/1/2/1/3 Lore% 94 Gallery% 89 Achievement% 79 Wizard Run 0 Options --------- ASCII 0 Keyboard 0 Movement Arrows Keybinds 0 Fullscreen 2 Font 18/SmallcapsGlow Map View 76x50 Tactical HUD 1 Map Filters NONE Filters NONE Steam 1 RUN: 8eff11ff-23bc-4fc3-96e1-b89901dc6019